[Event "Icelandic Championship 2022"]
[Site "Selfoss"]
[Date "2022.04.22"]
[Round "2.1"]
[White "Heimisson, Hilmir Freyr"]
[Black "Steingrimsson, Hedinn"]
[Result "1/2-1/2"]
[ECO "B70"]
[WhiteElo "2321"]
[BlackElo "2538"]
[Annotator "TA"]
[PlyCount "95"]
[EventDate "2022.04.21"]
[EventType "tourn"]
[EventCountry "ISL"]
[SourceTitle "playchess.com"]
[Source "ChessBase"]
[SourceQuality "1"]
[TimeControl "40/5400+30:1800+30"]

{[%evp 17,95,11,22,-12,-10,0,17,3,10,5,1,0,0,0,31,25,28,16,23,12,56,10,16,21,20,21,18,14,14,14,15,3,29,24,23,16,19,12,16,17,17,16,10,0,0,0,0,0,0,0,0,0,0,-19,-19,-19,-20,-31,-28,-39,0,0,0,0,0,0,0,0,0,0,0,0,0,0,0,0,0,0,0,0]} 1. e4 {[%emt 0:00:23]} c5 {[%emt 0:01:58]} 2. Nc3 {[%emt 0:00:19]} d6 {[%emt 0:05:50]} 3. Nge2 {[%emt 0:00:33]} Nf6 {[%emt 0:01:20]} 4. g3 {[%emt 0:00:37]} Nc6 {[%emt 0:00:31]} 5. Bg2 {[%emt 0:00:23]} g6 {[%emt 0:00:11]} 6. d4 {[%emt 0:03:23]} cxd4 {[%emt 0:00:40]} 7. Nxd4 {[%emt 0:00:12]} Nxd4 {[%emt 0:00:11]} 8. Qxd4 {[%emt 0:00:09]} Bg7 {[%emt 0:00:04]} 9. O-O {[%emt 0:00:21]} O-O {[%emt 0:00:05]} 10. Qc4 {[%emt 0:00:06] B70: Sicilian Dragon: 6 g3 and 6 Be2 (without a later Be3).} Nd7 {[%emt 0:24:01] [#]} 11. a4 $146 {[%emt 0:14:28]} ({Predecessor:} 11. Nd5 Ne5 12. Qb3 Nc6 13. Bg5 h6 14. Be3 b6 15. c4 Bb7 16. Rfd1 Rc8 17. Rac1 e6 {½-½ (39) Tiviakov,S (2675)-Esen,B (2575) Konya 2012}) 11... Ne5 {[%emt 0:05:11]} 12. Qb3 {[%emt 0:01:18]} Nc6 {[%emt 0:04:53]} 13. Nd5 {[%emt 0:00:23]} e6 {[%emt 0:05:03]} 14. Ne3 {[%emt 0:02:15]} b6 {[%emt 0:03:18]} 15. Rd1 {[%emt 0:04:26]} Qc7 {[%emt 0:15:15]} 16. Qa3 {[%emt 0:16:28]} Rd8 {[%emt 0:01:51]} 17. Bd2 {[%emt 0:00:51]} Bb7 {[%emt 0:09:17]} 18. Bc3 {[%emt 0:06:32]} e5 {[%emt 0:04:28]} 19. Nd5 {[%emt 0:13:15]} (19. Bd2 $14) 19... Qd7 $11 {[%emt 0:00:13]} 20. a5 {[%emt 0:00:52]} Nd4 $1 {[%emt 0:01:49]} 21. Bxd4 {[%emt 0:08:37]} ({Don't go for} 21. axb6 $2 axb6 22. Qb4 Rxa1 23. Rxa1 Nxc2 $19) 21... exd4 {[%emt 0:00:01]} 22. axb6 {[%emt 0:00:21]} axb6 {[%emt 0:00:22]} 23. Qb3 {[%emt 0:00:27]} Bxd5 {[%emt 0:00:47]} 24. exd5 {[%emt 0:01:27]} Qc7 {[%emt 0:00:48]} 25. Bf1 {[%emt 0:00:58][%cal Bg2f1,Bf1b5,Bb5c6][%mdl 32]} Ra5 {[%emt 0:03:01]} 26. Bb5 {[%emt 0:03:37]} Rda8 {[%emt 0:00:25]} 27. Rab1 {[%emt 0:00:35]} Bf6 {[%emt 0:01:35]} 28. Bc6 {[%emt 0:00:14]} Rb8 {[%emt 0:00:14]} 29. Re1 {[%emt 0:01:36]} Kg7 {[%emt 0:01:29]} 30. Re4 {[%emt 0:01:20]} b5 {[%emt 0:01:55][%cal Bb6b5,Bb5b4][%mdl 32]} 31. Rbe1 {[%emt 0:00:41]} b4 {[%emt 0:00:06]} 32. Kg2 {[%emt 0:02:02]} Rc5 {[%emt 0:01:03]} 33. R1e2 {[%emt 0:00:27]} h6 {[%emt 0:00:57]} 34. h4 {[%emt 0:01:21][%cal Oh4h5]} h5 {[%emt 0:00:52]} 35. Qd3 {[%emt 0:05:27]} b3 {[%emt 0:01:49]} 36. cxb3 {[%emt 0:05:28]} Qb6 {[%emt 0:00:00]} 37. Rf4 {[%emt 0:04:44][%cal Of4f6] [#] Hoping for Rxf6!} Qxb3 {[%emt 0:00:21]} 38. Qe4 {[%emt 0:00:19][%cal Of4f6] Strongly threatening Rxf6!} d3 {[%emt 0:05:56]} (38... Be5 $5 {[%cal Rc5c1]} 39. Rf3 Qd1 $15) 39. Rxf6 {[%emt 0:01:58] The position is equal.} dxe2 {[%emt 0:00:21]} 40. Rxf7+ {[%emt 0:00:36][%mdl 64] [#] Decoy} Kxf7 {[%emt 0:00:08]} 41. Qe6+ $1 {[%emt 0:30:28]} Kg7 {[%emt 0:30:30][%cal Bf7g7,Bg7g8,Bg8h7,Bh7h8][%mdl 32]} 42. Qe7+ {[%emt 0:00:28]} Kg8 {[%emt 0:01:11]} 43. Qe6+ $1 {[%emt 0:00:38]} Kh7 {[%emt 0:00:18]} 44. Qe7+ {[%emt 0:00:22]} Kh8 {[%emt 0:00:38]} 45. Qf6+ {[%emt 0:00:11]} Kh7 {[%emt 0:00:02]} 46. Qe7+ {[%emt 0:00:08]} Kg8 {[%emt 0:00:56]} 47. Qe6+ $1 {[%emt 0:00:09]} Kh7 {[%emt 0:00:03] ( -> ...Rf8)} 48. Qe7+ $1 {[%emt 0:00:09] Weighted Error Value: White=0.04 (flawless) /Black=0.05 (flawless)} 1/2-1/2

[Event "Icelandic Championship 2022"]
[Site "Selfoss"]
[Date "2022.04.22"]
[Round "2.2"]
[White "Kjartansson, Gudmundur"]
[Black "Stefansson, Vignir Vatnar"]
[Result "1-0"]
[ECO "A13"]
[WhiteElo "2430"]
[BlackElo "2501"]
[Annotator "TA"]
[PlyCount "133"]
[EventDate "2022.04.21"]
[EventType "tourn"]
[EventCountry "ISL"]
[SourceTitle "playchess.com"]
[Source "ChessBase"]
[SourceQuality "1"]
[TimeControl "40/5400+30:1800+30"]

{[%evp 9,132,12,16,17,15,12,10,7,42,41,103,91,115,112,115,75,89,80,85,82,81,81,88,73,73,60,96,97,96,96,94,91,91,91,91,89,98,97,98,84,85,81,96,75,81,85,130,108,134,134,134,118,95,52,86,86,86,86,86,80,82,58,79,79,192,185,165,170,214,163,211,0,0,0,0,0,0,0,0,0,0,0,0,0,14,0,6,0,0,0,0,0,0,0,-28000,-28000,-28000,-28000,-28000,-28000,-28000,-28000,-28000,-28000,-28000,-28000,-28000,-28000,-28000,-28000,-28000,-28000,-28000,-28000,-28000,-28000,-28000,-28000,-28000,-28000,-28000,-28000,-28000,-28000,-28000]} 1. c4 {[%emt 0:00:03]} e6 {[%emt 0:01:09]} 2. g3 {[%emt 0:00:40]} d5 {[%emt 0:00:05]} 3. Bg2 {[%emt 0:00:13]} g6 {[%emt 0:00:04]} 4. d4 {[%emt 0:06:09]} Bg7 {[%emt 0:00:06]} 5. e3 {[%emt 0:00:57]} Ne7 {[%emt 0:02:03]} 6. Ne2 {[%emt 0:02:22] A13: English Opening: 1...e6.} O-O {[%emt 0:05:14]} 7. O-O {[%emt 0:00:34]} a5 {[%emt 0:15:06][%cal Ba7a5,Ba5a4][%mdl 32]} 8. b3 {[%emt 0:07:13] [#] The position is equal.} a4 $146 {[%emt 0:02:39]} ({Predecessor:} 8... c6 9. Bb2 Nd7 10. Qc2 b6 11. Rd1 Ba6 12. Nd2 b5 13. Nf4 Rc8 14. Rac1 Nf5 {0-1 (41) Gunnarsson,A (2448)-Miroshnichenko,E (2677) Reykjavik 2010}) 9. Ba3 {[%emt 0:00:55]} Nbc6 {[%emt 0:08:56]} (9... c6 $14) 10. Nbc3 {[%emt 0:04:28]} ({Don't do} 10. bxa4 Re8 $14) 10... dxc4 {[%emt 0:02:36]} 11. bxc4 {[%emt 0:02:34]} Na5 {[%emt 0:04:54]} 12. Qxa4 {[%emt 0:08:19]} Bd7 {[%emt 0:00:19]} 13. Nb5 {[%emt 0:02:53] &Bianco is more active.} Nxc4 {[%emt 0:05:46][%mdl 64] [#] Remove Defender} 14. Qxc4 {[%emt 0:00:34]} Bxb5 {[%emt 0:00:12][%mdl 64] Remove Defender} 15. Qxb5 {[%emt 0:00:11]} Rxa3 {[%emt 0:00:04]} 16. Qxb7 {[%emt 0:18:24]} c5 {[%emt 0:04:49]} 17. Rad1 {[%emt 0:01:18]} cxd4 {[%emt 0:04:02]} 18. Nxd4 {[%emt 0:00:21]} Nd5 {[%emt 0:06:07]} 19. Bxd5 {[%emt 0:07:14]} Qxd5 {[%emt 0:02:27]} 20. Qxd5 {[%emt 0:00:17]} exd5 {[%emt 0:00:06]} 21. Nc6 {[%emt 0:02:10]} Rxa2 {[%emt 0:00:48]} 22. Rxd5 {[%emt 0:02:27]} h5 {[%emt 0:00:17]} 23. Rb1 {[%emt 0:05:14]} Bf6 {[%emt 0:05:16]} 24. Rd6 {[%emt 0:05:11]} Kg7 {[%emt 0:00:43]} 25. Rb6 {[%emt 0:09:35]} h4 {[%emt 0:04:11]} 26. Kg2 {[%emt 0:05:45][%cal Od6f6] Black must now prevent Rxf6!} h3+ {[%emt 0:01:42]} 27. Kf3 {[%emt 0:00:48][%cal Od6f6]} ({Don't play} 27. Kxh3 $6 Rxf2 28. Rb8 Rxb8 29. Nxb8 Re2 $11) 27... Bc3 {[%emt 0:00:05]} 28. Rd1 {[%emt 0:00:54] Prevents Be1.} Rc8 {[%emt 0:01:31]} 29. Nb4 {[%emt 0:01:56]} Ra4 {[%emt 0:03:12]} 30. Nd5 {[%emt 0:02:22]} Be5 {[%emt 0:00:09]} 31. Nf4 {[%emt 0:01:39]} g5 {[%emt 0:01:27]} 32. Nh5+ {[%emt 0:00:15]} Kf8 {[%emt 0:01:21]} 33. g4 {[%emt 0:00:37]} Bxh2 {[%emt 0:05:33]} 34. Rh1 {[%emt 0:00:30]} Be5 {[%emt 0:01:03][%cal Of7f5]} 35. Rxh3 {[%emt 0:02:00]} Rcc4 {[%emt 0:00:11] [#]} 36. Rb5 $1 {[%emt 0:00:49]} f5 {[%emt 0:00:17]} 37. Rh1 $18 {[%emt 0:00:09]} fxg4+ {[%emt 0:00:12]} 38. Kg2 {[%emt 0:00:03]} Bc7 {[%emt 0:01:49]} 39. Rxg5 {[%emt 0:01:16] Nf6 is the strong threat.} Rc2 {[%emt 0:00:28]} (39... Ra5 $142 40. Rxa5 Bxa5) 40. Rh4 $2 {[%emt 0:00:37]} (40. Rf5+ $18 Ke7 41. Ng3) 40... Rxf2+ $1 $11 {[%emt 0:01:33][%mdl 64] Remove Defender, Decoy} 41. Kxf2 {[%emt 0:02:05]} g3+ {[%emt 0:00:06][%mdl 64] Discovered Attack} 42. Nxg3 {[%emt 0:01:01]} Rxh4 {[%emt 0:00:06][%mdl 4096] Endgame KRB-KRN} 43. Nf5 {[%emt 0:00:27]} Rh2+ {[%emt 0:00:08]} 44. Kf3 {[%emt 0:00:16]} Bd8 {[%emt 0:00:14]} 45. Rg6 {[%emt 0:00:31]} Kf7 {[%emt 0:01:03]} 46. Ra6 {[%emt 0:00:17]} Bf6 {[%emt 0:03:24]} 47. Ke4 {[%emt 0:01:04]} Rh8 {[%emt 0:00:27]} 48. Kd5 {[%emt 0:01:02]} Rd8+ {[%emt 0:00:46]} 49. Nd6+ {[%emt 0:00:14]} Ke7 {[%emt 0:00:18]} 50. e4 {[%emt 0:00:36]} Rd7 {[%emt 0:00:04]} 51. e5 {[%emt 0:00:40]} Bxe5 $1 {[%emt 0:00:07]} 52. Kxe5 {[%emt 0:00:02] KRN-KR. Mate.} Rc7 {[%emt 0:00:14]} 53. Nf5+ {[%emt 0:00:48]} Kd7 {[%emt 0:00:12]} 54. Kd5 {[%emt 0:00:36]} Rb7 {[%emt 0:01:01]} 55. Nd6 {[%emt 0:00:48]} Rc7 {[%emt 0:00:16]} 56. Nb5 {[%emt 0:00:45]} Rb7 {[%emt 0:00:39]} 57. Nd6 {[%emt 0:00:12]} Rc7 {[%emt 0:00:11]} 58. Nc4 {[%emt 0:00:05]} Ke8 {[%emt 0:02:37]} 59. Ne5 {[%emt 0:00:16]} Kf8 {[%emt 0:00:50]} 60. Ke6 {[%emt 0:00:14]} Rc1 {[%emt 0:00:43]} 61. Ra7 {[%emt 0:01:49]} Re1 {[%emt 0:00:12]} 62. Rh7 {[%emt 0:01:11]} Kg8 {[%emt 0:00:19]} 63. Rh3 {[%emt 0:00:19]} Rf1 {[%emt 0:01:23]} 64. Rg3+ {[%emt 0:00:21]} Kh7 {[%emt 0:00:01]} 65. Nf7 {[%emt 0:06:00]} Rf6+ {[%emt 0:01:19]} 66. Ke7 {[%emt 0:00:23]} Re6+ {[%emt 0:00:05]} 67. Kxe6 {[%emt 0:01:26][%mdl 32768] Quite a comeback for Black.  Weighted Error Value: White=0.09 (flawless) /Black=0.10 (very precise) . Sensor Board Error (Ke4/e5)?} 1-0

[Event "Icelandic Championship 2022"]
[Site "Selfoss"]
[Date "2022.04.22"]
[Round "2.3"]
[White "Thorhallsson, Throstur"]
[Black "Mai, Alexander Oliver"]
[Result "1/2-1/2"]
[ECO "C54"]
[WhiteElo "2422"]
[BlackElo "2177"]
[Annotator "TA"]
[PlyCount "70"]
[EventDate "2022.04.21"]
[EventType "tourn"]
[EventCountry "ISL"]
[SourceTitle "playchess.com"]
[Source "ChessBase"]
[SourceQuality "1"]
[TimeControl "40/5400+30:1800+30"]

{[%evp 16,70,15,13,20,0,0,0,0,-5,16,0,19,17,14,17,31,26,29,30,46,49,58,60,87,67,102,77,92,84,161,154,244,268,280,11,0,0,0,0,0,0,0,0,0,0,0,0,0,0,0,0,0,0,0,0,0]} 1. e4 {[%emt 0:00:13]} e5 {[%emt 0:00:08]} 2. Nf3 {[%emt 0:01:15]} Nc6 {[%emt 0:00:15]} 3. Bc4 {[%emt 0:00:15]} Nf6 {[%emt 0:00:08]} 4. d3 {[%emt 0:00:33]} Bc5 {[%emt 0:00:18]} 5. c3 {[%emt 0:01:02]} a6 {[%emt 0:00:17]} 6. O-O {[%emt 0:04:36]} d6 {[%emt 0:00:31]} 7. Bb3 {[%emt 0:03:25]} Ba7 {[%emt 0:00:20]} 8. Re1 {[%emt 0:02:06]} O-O {[%emt 0:02:17]} 9. h3 {[%emt 0:03:36]} h6 {[%emt 0:00:30] C54: Giuoco Piano: 4 c3 Nf6, main lines with 5 d4 and 5 d3.} 10. Be3 {[%emt 0:12:59]} Bxe3 {[%emt 0:08:54]} 11. Rxe3 {[%emt 0:00:59]} Re8 {[%emt 0:02:53]} 12. Nbd2 {[%emt 0:03:11][%cal Bb1d2,Bd2f1,Bf1g3][%mdl 32] [#]} Be6 $146 {[%emt 0:12:07]} ({Predecessor:} 12... d5 13. Re1 dxe4 14. Nxe4 Nxe4 15. dxe4 Be6 16. Qxd8 Raxd8 17. Rad1 Bxb3 18. axb3 f6 {½-½ (31) Andriasian,Z (2604)-Petrosian,T (2659) Fujairah 2012}) 13. d4 {[%emt 0:03:53] [#] Threatens to win with d5.} Bxb3 {[%emt 0:02:19]} 14. Qxb3 {[%emt 0:01:25]} Rb8 {[%emt 0:02:07]} 15. Rae1 {[%emt 0:02:14]} Nd7 {[%emt 0:09:44]} 16. Nf1 {[%emt 0:02:30]} Nf8 {[%emt 0:18:32][%cal Bd7f8,Bf8h7,Bh7f6][%mdl 32]} 17. Ng3 {[%emt 0:01:19]} g6 {[%emt 0:00:58]} 18. h4 {[%emt 0:08:49][%cal Bh3h4,Bh4h5][%mdl 32]} Kg7 {[%emt 0:02:38]} 19. h5 {[%emt 0:02:03]} Qe7 {[%emt 0:01:21]} 20. Rd1 {[%emt 0:06:54]} Red8 {[%emt 0:05:27]} 21. Qc4 {[%emt 0:09:09] &Bianco is more active.} Nh7 {[%emt 0:02:37]} 22. b4 {[%emt 0:02:13]} exd4 {[%emt 0:04:24]} (22... Ra8 $16) 23. cxd4 $18 {[%emt 0:00:38]} d5 {[%emt 0:00:35]} (23... Nf6 $16) 24. exd5 {[%emt 0:02:55]} Qxb4 {[%emt 0:00:08]} 25. Qc5 {[%emt 0:05:15] [#]} (25. Qc2 $18 Rxd5 26. hxg6 fxg6 27. Re6) 25... Qxc5 $11 {[%emt 0:03:06] The position is equal.} 26. dxc5 {[%emt 0:00:09]} Nf6 {[%emt 0:01:21][%csl LRd5,LRh5]} 27. d6 {[%emt 0:02:24]} cxd6 {[%emt 0:01:00]} 28. cxd6 {[%emt 0:00:10]} Rd7 {[%emt 0:01:57]} 29. hxg6 {[%emt 0:02:43]} fxg6 {[%emt 0:00:20]} 30. Nd4 {[%emt 0:05:37]} Nxd4 {[%emt 0:02:20]} 31. Rxd4 {[%emt 0:00:04]} Rbd8 {[%emt 0:00:32]} 32. f3 {[%emt 0:06:40]} Kf7 {[%emt 0:04:42]} 33. Red3 {[%emt 0:00:48]} Ke6 {[%emt 0:02:17][%cal Rd7d6]} 34. Re3+ {[%emt 0:00:39]} Kf7 {[%emt 0:00:08]} 35. Red3 {[%emt 0:02:21]} Ke6 {[%emt 0:00:08] Weighted Error Value: White=0.26 (precise) /Black=0.13 (very precise)} 1/2-1/2

[Event "Icelandic Championship 2022"]
[Site "Selfoss"]
[Date "2022.04.22"]
[Round "2.4"]
[White "Stefansson, Hannes"]
[Black "Thorhallsson, Simon"]
[Result "1-0"]
[ECO "D41"]
[WhiteElo "2525"]
[BlackElo "2252"]
[Annotator "TA"]
[PlyCount "47"]
[EventDate "2022.04.21"]
[EventType "tourn"]
[EventCountry "ISL"]
[SourceTitle "playchess.com"]
[Source "ChessBase"]
[SourceQuality "1"]
[TimeControl "40/5400+30:1800+30"]

{[%evp 19,47,18,30,0,18,0,0,0,47,39,98,103,395,369,422,401,422,404,407,415,407,382,691,709,709,696,687,685,668,625]} 1. d4 {[%emt 0:00:06]} Nf6 {[%emt 0:00:15]} 2. c4 {[%emt 0:00:16]} e6 {[%emt 0:00:18]} 3. Nf3 {[%emt 0:00:36]} d5 {[%emt 0:00:49]} 4. Nc3 {[%emt 0:00:51]} c5 {[%emt 0:00:12]} 5. cxd5 {[%emt 0:00:22]} Nxd5 {[%emt 0:00:10]} 6. e4 {[%emt 0:02:06]} Nxc3 {[%emt 0:00:11]} 7. bxc3 {[%emt 0:00:05]} cxd4 {[%emt 0:00:11]} 8. cxd4 {[%emt 0:00:06]} Bb4+ {[%emt 0:00:08]} 9. Bd2 {[%emt 0:00:49]} Bxd2+ {[%emt 0:00:16]} 10. Qxd2 {[%emt 0:00:36]} O-O {[%emt 0:00:11]} 11. Rd1 {[%emt 0:02:51] D41: Queen's Gambit Declined: Semi-Tarrasch with 5 cxd5.} Bd7 {[%emt 0:09:03]} 12. Bd3 {[%emt 0:05:09]} Ba4 {[%emt 0:12:47]} 13. Rb1 {[%emt 0:13:21] [#] The position is equal.} Bc6 $146 {[%emt 0:06:25]} (13... Nc6 $11) ({Predecessor:} 13... Nc6 14. d5 exd5 15. exd5 Re8+ 16. Be2 Ne7 17. Rb4 b5 18. Rd4 Rc8 19. O-O Nf5 {1-0 (38) Siebrecht,S (2457)-Krudde,F (2317) Netherlands 2006}) 14. O-O $14 {[%emt 0:02:47]} Nd7 {[%emt 0:02:58]} (14... b6 $14) 15. d5 $1 $16 {[%emt 0:02:39][%cal Bd4d5,Bd5c6,Bc6b7][%mdl 32] &Bianco is more active.} Nc5 $2 {[%emt 0:17:23][%mdl 8192] [#]} (15... exd5 $16 16. exd5 Bxd5) 16. dxc6 $18 {[%emt 0:05:57]} Qxd3 {[%emt 0:00:22]} 17. Qxd3 {[%emt 0:00:41]} Nxd3 {[%emt 0:00:09]} 18. cxb7 {[%emt 0:01:23]} Rab8 {[%emt 0:01:32] [#]} 19. Nd4 $1 {[%emt 0:03:32] Hoping for Nc6.} Nc5 {[%emt 0:02:42]} 20. Rb5 {[%emt 0:01:20]} Nxe4 $2 {[%emt 0:04:21]} (20... Rxb7 21. Rxc5 Rb4) 21. Nc6 {[%emt 0:00:28][%csl LRa7,LRb8] White is clearly winning.} Nd6 {[%emt 0:00:34]} 22. Nxb8 {[%emt 0:00:22]} Rxb8 {[%emt 0:00:22]} 23. Rb3 {[%emt 0:01:02]} ({Not} 23. Rfb1 Nxb5 24. Rxb5 Kf8 $11) 23... g6 {[%emt 0:00:40]} 24. Rd1 {[%emt 0:03:28] White took control after the opening.  Weighted Error Value: White=0.04 (flawless) /Black=0.72} 1-0

[Event "Icelandic Championship 2022"]
[Site "Selfoss"]
[Date "2022.04.22"]
[Round "2.5"]
[White "Thorfinnsson, Bragi"]
[Black "Gretarsson, Hjorvar Steinn"]
[Result "1/2-1/2"]
[ECO "C02"]
[WhiteElo "2419"]
[BlackElo "2542"]
[Annotator "TA"]
[PlyCount "130"]
[EventDate "2022.04.21"]
[EventType "tourn"]
[EventCountry "ISL"]
[SourceTitle "playchess.com"]
[Source "ChessBase"]
[SourceQuality "1"]
[TimeControl "40/5400+30:1800+30"]

{[%evp 19,130,0,7,0,14,0,17,-71,-74,-83,-48,-94,-66,-64,-56,-47,12,10,0,0,0,-2,23,0,0,-9,-16,-53,-60,-66,-36,-33,-29,-35,-29,-39,-39,-25,0,-32,-10,-18,-8,-8,-8,-8,-8,-13,-19,-15,0,0,0,0,0,0,0,0,0,0,0,0,0,0,0,0,0,-8,0,-8,0,-10,0,0,0,0,0,0,0,0,0,0,0,0,0,0,0,0,0,0,0,0,0,0,0,0,0,0,0,0,0,0,0,0,0,0,0,0,0,0,0,0,0]} 1. e4 {[%emt 0:00:41]} e6 {[%emt 0:00:17]} 2. d4 {[%emt 0:04:53]} d5 {[%emt 0:00:10]} 3. e5 {[%emt 0:01:48]} c5 {[%emt 0:00:08]} 4. c3 {[%emt 0:00:12]} Nc6 {[%emt 0:00:08]} 5. Nf3 {[%emt 0:00:56]} Bd7 {[%emt 0:01:00]} 6. Be2 {[%emt 0:06:04]} Nge7 {[%emt 0:00:08]} 7. O-O {[%emt 0:00:32]} Nf5 {[%emt 0:03:25]} 8. Na3 {[%emt 0:08:06]} cxd4 {[%emt 0:07:18]} 9. cxd4 {[%emt 0:00:48]} Qb6 {[%emt 0:18:06]} 10. Nc2 {[%emt 0:00:57]} Na5 {[%emt 0:07:57]} 11. g4 {[%emt 0:08:15] C02: French: Advance Variation.} Ne7 {[%emt 0:00:31]} 12. Nfe1 {[%emt 0:03:30]} h5 {[%emt 0:03:00] [#]} 13. h3 $146 {[%emt 0:03:06]} (13. gxh5 $11 {keeps the balance.} Nac6 14. Bd3) ({Predecessor:} 13. gxh5 Bb5 14. Bxb5+ Qxb5 15. Ne3 Nac6 16. b3 g6 17. Ng4 O-O-O 18. h6 Nf5 19. Bg5 Rd7 20. Nf6 Rc7 21. Ne8 Rd7 22. Nf6 Rc7 23. Ne8 {½-½ (23) Shirov,A (2713)-Del Rio de Angelis,S (2502) Caleta 2005}) 13... hxg4 $17 {[%emt 0:01:39]} 14. hxg4 {[%emt 0:00:04]} f6 {[%emt 0:08:48]} 15. Nd3 {[%emt 0:07:04]} (15. Nf3 $15) 15... Ng6 {[%emt 0:03:46]} 16. Nf4 {[%emt 0:11:13]} Nxf4 {[%emt 0:01:51]} 17. Bxf4 {[%emt 0:00:04]} Bb5 {[%emt 0:07:47] Prevents Qd3.} ({Black should try} 17... O-O-O $15) 18. Bxb5+ {[%emt 0:07:06]} Qxb5 {[%emt 0:00:02]} 19. exf6 {[%emt 0:00:07]} gxf6 {[%emt 0:00:08]} 20. Re1 {[%emt 0:00:07]} Kd7 {[%emt 0:02:59]} 21. b4 {[%emt 0:04:23]} Nc4 {[%emt 0:01:19]} (21... Bxb4 $2 22. Rb1 Nc6 23. Nxb4 Nxb4 24. a3 $18) 22. a4 $132 {[%emt 0:02:06][%mdl 2048] White has counterplay. The board is on fire.} Qb6 {[%emt 0:02:53] [#] And now ...Bd6 would win.} 23. Qf3 {[%emt 0:12:25]} Bd6 {[%emt 0:01:57] White must now prevent ...Rag8.} (23... Bxb4 24. Nxb4 Qxb4 25. Rab1 (25. Qe2 Qe7 $15) 25... Qxe1+ 26. Rxe1 $18) 24. Kg2 $1 {[%emt 0:03:04]} Bxf4 {[%emt 0:02:30]} (24... Bxb4 $2 25. Nxb4 Qxb4 26. Rab1 (26. Qe2 Qe7 $11) 26... Qxb1 27. Rxb1 $18) 25. Qxf4 {[%emt 0:00:03]} Qd6 {[%emt 0:01:26]} 26. Qxd6+ {[%emt 0:02:19]} Kxd6 {[%emt 0:00:05]} 27. Rh1 $1 {[%emt 0:04:31]} Rhg8 {[%emt 0:00:51]} 28. Kf3 {[%emt 0:00:40]} Rh8 {[%emt 0:06:07]} 29. Ne3 {[%emt 0:04:29]} Nd2+ {[%emt 0:00:24]} 30. Kg2 {[%emt 0:00:48] The position is equal.} Nb3 {[%emt 0:03:34]} (30... a6 {is more complex.} 31. a5 Nc4 32. Kf3 Rag8) 31. Rxh8 {[%emt 0:00:35]} Rxh8 $11 {[%emt 0:00:02][%mdl 4096] Endgame KRN-KRN} 32. Rd1 {[%emt 0:00:08]} Rc8 {[%emt 0:00:25]} 33. Rd3 {[%emt 0:01:08]} Nc1 {[%emt 0:00:07]} 34. Rd2 {[%emt 0:00:42]} Rc3 {[%emt 0:01:52] aiming for ...Rb3.} 35. Rc2 {[%emt 0:01:28]} Rxc2 {[%emt 0:00:29]} 36. Nxc2 {[%emt 0:00:03] KN-KN} Nd3 {[%emt 0:00:27]} 37. Kf3 {[%emt 0:03:02]} e5 {[%emt 0:00:07]} 38. Ke2 {[%emt 0:01:20]} Nf4+ {[%emt 0:02:06]} 39. Ke3 {[%emt 0:00:25]} Ne6 {[%emt 0:00:27]} 40. f3 {[%emt 0:00:35]} Ke7 {[%emt 0:01:44]} 41. dxe5 {[%emt 0:09:49]} fxe5 {[%emt 0:00:13]} 42. Ne1 {[%emt 0:00:02]} Nf4 {[%emt 0:04:43]} 43. Nc2 {[%emt 0:04:14]} Ne6 {[%emt 0:04:23]} 44. Ne1 {[%emt 0:02:01]} Nf4 {[%emt 0:01:57]} 45. Nc2 {[%emt 0:00:05]} Kd6 {[%emt 0:05:14]} 46. Nd4 {[%emt 0:01:58]} Kd7 {[%emt 0:03:44]} 47. Nf5 {[%emt 0:04:02]} Ne6 {[%emt 0:00:55]} 48. Kd3 {[%emt 0:00:50]} b6 {[%emt 0:01:57]} 49. a5 {[%emt 0:04:38]} bxa5 {[%emt 0:02:05]} 50. bxa5 {[%emt 0:00:01][%cal Bb4a5,Ba5a6][%mdl 32]} Kc6 {[%emt 0:05:55]} 51. Ne7+ {[%emt 0:00:44]} Kc5 {[%emt 0:00:28]} 52. a6 {[%emt 0:01:46]} Kd6 {[%emt 0:09:35]} 53. Nc8+ {[%emt 0:01:40]} Kd7 {[%emt 0:00:09]} 54. Nxa7 {[%emt 0:00:37]} Nc5+ {[%emt 0:00:24]} 55. Ke3 {[%emt 0:01:23]} d4+ {[%emt 0:00:32]} 56. Ke2 {[%emt 0:00:24]} Nxa6 {[%emt 0:00:07]} 57. Nb5 {[%emt 0:00:14]} Kc6 {[%emt 0:00:41]} 58. Na3 {[%emt 0:00:39]} Nc7 {[%emt 0:02:17]} 59. Nc4 {[%emt 0:00:58]} Kd5 {[%emt 0:00:07]} 60. Nb2 {[%emt 0:00:21]} Ke6 {[%emt 0:00:43]} 61. Nd3 {[%emt 0:00:57]} Kf6 {[%emt 0:01:11]} 62. Nf2 {[%emt 0:01:22]} Nd5 {[%emt 0:00:27]} 63. Ne4+ {[%emt 0:00:14]} Ke6 {[%emt 0:00:32]} 64. Ng5+ {[%emt 0:00:55]} Kf6 {[%emt 0:00:07]} 65. Ne4+ {[%emt 0:00:03]} Ke6 {[%emt 0:00:19] Weighted Error Value: White=0.06 (flawless) /Black=0.07 (flawless)} 1/2-1/2